[Event "Titled Tuesday Blitz December 13 Early 2022"]
[White "Roebers, Jan"]
[Black "Vifleemskaia, Svetlana"]
[WhiteFideId "1007815"]
[BlackFideId "4129490"]
[WhiteElo "2165"]
[BlackElo "1930"]
[Result "1-0"]
[Round "07"]
[TimeControl "180+1"]
[Date "2022.12.14"]
[WhiteClock "0:02:01"]
[BlackClock "0:00:59"]

1. e4 {[%clk 0:03:00]}  d5 {[%clk 0:02:58]} 2. exd5 {[%clk 0:03:00]}  Nf6 {[%clk 0:02:58]} 3. Nf3 {[%clk 0:02:58]}  Bg4 {[%clk 0:02:57]} 4. Be2 {[%clk 0:02:58]}  Qxd5 {[%clk 0:02:55]} 5. O-O {[%clk 0:02:57]}  e5 {[%clk 0:02:54]} 6. Nc3 {[%clk 0:02:55]}  Qa5 {[%clk 0:02:51]} 7. d3 {[%clk 0:02:55]}  Be7 {[%clk 0:02:50]} 8. Bd2 {[%clk 0:02:54]}  Nbd7 {[%clk 0:02:47]} 9. h3 {[%clk 0:02:52]}  Bh5 {[%clk 0:02:47]} 10. a3 {[%clk 0:02:49]}  c6 {[%clk 0:02:43]} 11. b4 {[%clk 0:02:47]}  Qc7 {[%clk 0:02:43]} 12. Be3 {[%clk 0:02:45]}  O-O {[%clk 0:02:42]} 13. Qd2 {[%clk 0:02:41]}  Nd5 {[%clk 0:02:41]} 14. Nxd5 {[%clk 0:02:35]}  cxd5 {[%clk 0:02:42]} 15. c4 {[%clk 0:02:26]}  d4 {[%clk 0:02:41]} 16. Bg5 {[%clk 0:02:25]}  f6 {[%clk 0:02:38]} 17. Bh4 {[%clk 0:02:25]}  g5 {[%clk 0:02:36]} 18. Bg3 {[%clk 0:02:25]}  Qd8 {[%clk 0:02:32]} 19. Nxd4 {[%clk 0:02:23]}  Bxe2 {[%clk 0:02:21]} 20. Nxe2 {[%clk 0:02:24]}  Nb6 {[%clk 0:02:16]} 21. Qc2 {[%clk 0:02:21]}  Rc8 {[%clk 0:02:14]} 22. c5 {[%clk 0:02:18]}  Nd5 {[%clk 0:02:12]} 23. d4 {[%clk 0:02:16]}  exd4 {[%clk 0:02:05]} 24. Nxd4 {[%clk 0:02:17]}  Qd7 {[%clk 0:01:59]} 25. Rad1 {[%clk 0:02:15]}  Kh8 {[%clk 0:01:45]} 26. Rfe1 {[%clk 0:02:13]}  Rcd8 {[%clk 0:01:25]} 27. Ne6 {[%clk 0:02:10]}  Rfe8 {[%clk 0:01:12]} 28. Nxd8 {[%clk 0:02:10]}  Rxd8 {[%clk 0:01:12]} 29. Rxd5 {[%clk 0:02:01]}  Qxd5 {[%clk 0:01:10]} 30. Rxe7 {[%clk 0:02:02]}  Qd1+ {[%clk 0:01:02]} 31. Qxd1 {[%clk 0:02:01]}  Rxd1+ {[%clk 0:01:02]} 32. Kh2 {[%clk 0:02:01]}  f5 {[%clk 0:01:02]} 33. Be5+ {[%clk 0:01:59]}  Kg8 {[%clk 0:01:03]} 34. Rxb7 {[%clk 0:02:00]}  Rd5 {[%clk 0:00:59]} 35. c6 {[%clk 0:02:01]} 1-0


[Site "https://www.chess.com"]

[Event "Titled Tuesday Blitz December 13 Early 2022"]
[White "Shuvalov, Evgenij"]
[Black "Kuderinov, Kirill"]
[WhiteFideId "4187237"]
[BlackFideId "13701568"]
[WhiteElo "2049"]
[BlackElo "2459"]
[Result "0-1"]
[Round "07"]
[TimeControl "180+1"]
[Date "2022.12.14"]
[WhiteClock "0:00:01"]
[BlackClock "0:00:09"]

1. d4 {[%clk 0:02:59]}  Nf6 {[%clk 0:02:59]} 2. c4 {[%clk 0:02:59]}  g6 {[%clk 0:02:59]} 3. Nc3 {[%clk 0:02:59]}  Bg7 {[%clk 0:03:00]} 4. e4 {[%clk 0:02:59]}  d6 {[%clk 0:03:00]} 5. Nf3 {[%clk 0:02:59]}  O-O {[%clk 0:03:01]} 6. Be2 {[%clk 0:03:00]}  e5 {[%clk 0:03:01]} 7. O-O {[%clk 0:02:59]}  Nc6 {[%clk 0:03:02]} 8. d5 {[%clk 0:02:59]}  Ne7 {[%clk 0:03:02]} 9. Ne1 {[%clk 0:03:00]}  Ne8 {[%clk 0:03:02]} 10. f3 {[%clk 0:02:58]}  f5 {[%clk 0:03:02]} 11. g4 {[%clk 0:02:58]}  Nf6 {[%clk 0:02:55]} 12. Nd3 {[%clk 0:02:57]}  c5 {[%clk 0:02:51]} 13. Be3 {[%clk 0:02:54]}  f4 {[%clk 0:02:48]} 14. Bf2 {[%clk 0:02:54]}  h5 {[%clk 0:02:49]} 15. g5 {[%clk 0:02:54]}  Nh7 {[%clk 0:02:46]} 16. h4 {[%clk 0:02:54]}  Bd7 {[%clk 0:02:46]} 17. Kh2 {[%clk 0:02:53]}  Nc8 {[%clk 0:02:45]} 18. Rg1 {[%clk 0:02:52]}  a6 {[%clk 0:02:43]} 19. a3 {[%clk 0:02:47]}  b5 {[%clk 0:02:39]} 20. b4 {[%clk 0:02:41]}  bxc4 {[%clk 0:02:38]} 21. Nb2 {[%clk 0:02:41]}  cxb4 {[%clk 0:02:32]} 22. axb4 {[%clk 0:02:41]}  Nb6 {[%clk 0:02:31]} 23. Qd2 {[%clk 0:02:24]}  Rf7 {[%clk 0:02:30]} 24. Bxc4 {[%clk 0:02:19]}  Nxc4 {[%clk 0:02:23]} 25. Nxc4 {[%clk 0:02:20]}  Bf8 {[%clk 0:02:09]} 26. Nb6 {[%clk 0:02:14]}  Rb8 {[%clk 0:02:08]} 27. Rxa6 {[%clk 0:02:05]}  Be8 {[%clk 0:01:57]} 28. Qa2 {[%clk 0:01:01]}  Rfb7 {[%clk 0:01:51]} 29. Qa5 {[%clk 0:01:01]}  Rc7 {[%clk 0:01:49]} 30. b5 {[%clk 0:00:59]}  Be7 {[%clk 0:01:29]} 31. Nba4 {[%clk 0:00:44]}  Kg7 {[%clk 0:01:08]} 32. Bb6 {[%clk 0:00:36]}  Rxb6 {[%clk 0:01:07]} 33. Qxb6 {[%clk 0:00:37]}  Qc8 {[%clk 0:01:01]} 34. Ra7 {[%clk 0:00:32]}  Bd8 {[%clk 0:00:44]} 35. Rxc7+ {[%clk 0:00:27]}  Bxc7 {[%clk 0:00:45]} 36. Qa6 {[%clk 0:00:26]}  Qd8 {[%clk 0:00:34]} 37. b6 {[%clk 0:00:25]}  Bb8 {[%clk 0:00:34]} 38. Qb7+ {[%clk 0:00:25]}  Kg8 {[%clk 0:00:33]} 39. Nb2 {[%clk 0:00:17]}  Nf8 {[%clk 0:00:27]} 40. Nc4 {[%clk 0:00:16]}  Nd7 {[%clk 0:00:28]} 41. Ra1 {[%clk 0:00:16]}  Nc5 {[%clk 0:00:28]} 42. Qa8 {[%clk 0:00:14]}  Bd7 {[%clk 0:00:23]} 43. Ra7 {[%clk 0:00:14]}  Kf7 {[%clk 0:00:19]} 44. Nb5 {[%clk 0:00:10]}  Ke7 {[%clk 0:00:20]} 45. Nc7 {[%clk 0:00:10]}  Bxa7 {[%clk 0:00:17]} 46. Qxa7 {[%clk 0:00:10]}  Qc8 {[%clk 0:00:16]} 47. Na5 {[%clk 0:00:09]}  Kd8 {[%clk 0:00:13]} 48. Nc6+ {[%clk 0:00:08]}  Bxc6 {[%clk 0:00:12]} 49. dxc6 {[%clk 0:00:09]}  d5 {[%clk 0:00:11]} 50. Nxd5 {[%clk 0:00:04]}  Qxc6 {[%clk 0:00:11]} 51. Qe7+ {[%clk 0:00:03]}  Kc8 {[%clk 0:00:11]} 52. Qf8+ {[%clk 0:00:02]}  Kb7 {[%clk 0:00:10]} 53. Qe7+ {[%clk 0:00:03]}  Ka6 {[%clk 0:00:11]} 54. Qa7+ {[%clk 0:00:02]}  Kb5 {[%clk 0:00:11]} 55. Nc7+ {[%clk 0:00:01]}  Kb4 {[%clk 0:00:09]} 0-1


[Site "https://www.chess.com"]

[Event "Titled Tuesday Blitz December 13 Early 2022"]
[White "Svane, Rasmus"]
[Black "Munkhgal, Gombosuren"]
[WhiteFideId "4657101"]
[BlackFideId "4901266"]
[WhiteElo "2674"]
[BlackElo "2577"]
[Result "1-0"]
[Round "07"]
[TimeControl "180+1"]
[Date "2022.12.13"]
[WhiteClock "0:00:21"]
[BlackClock "0:00:01"]

1. Nf3 {[%clk 0:03:00]}  Nf6 {[%clk 0:03:00]} 2. g3 {[%clk 0:03:01]}  g6 {[%clk 0:03:00]} 3. Bg2 {[%clk 0:03:01]}  Bg7 {[%clk 0:03:01]} 4. O-O {[%clk 0:03:02]}  O-O {[%clk 0:03:02]} 5. d4 {[%clk 0:03:03]}  d6 {[%clk 0:03:02]} 6. Re1 {[%clk 0:03:03]}  Nc6 {[%clk 0:03:03]} 7. d5 {[%clk 0:03:03]}  Nb8 {[%clk 0:03:02]} 8. c4 {[%clk 0:03:03]}  a5 {[%clk 0:03:02]} 9. Nc3 {[%clk 0:03:03]}  b6 {[%clk 0:03:00]} 10. e4 {[%clk 0:03:03]}  Nbd7 {[%clk 0:03:00]} 11. Bf4 {[%clk 0:03:01]}  Nh5 {[%clk 0:03:00]} 12. Bg5 {[%clk 0:02:59]}  h6 {[%clk 0:02:59]} 13. Be3 {[%clk 0:02:58]}  Ba6 {[%clk 0:02:59]} 14. Qd2 {[%clk 0:02:54]}  Kh7 {[%clk 0:02:57]} 15. b3 {[%clk 0:02:53]}  Nhf6 {[%clk 0:02:54]} 16. Nd4 {[%clk 0:02:51]}  Bb7 {[%clk 0:02:51]} 17. h3 {[%clk 0:02:50]}  Nc5 {[%clk 0:02:47]} 18. f4 {[%clk 0:02:40]}  Nfd7 {[%clk 0:02:45]} 19. Rad1 {[%clk 0:02:39]}  e5 {[%clk 0:02:45]} 20. Ndb5 {[%clk 0:02:06]}  Re8 {[%clk 0:02:12]} 21. f5 {[%clk 0:02:06]}  g5 {[%clk 0:02:12]} 22. Rb1 {[%clk 0:01:59]}  Nf6 {[%clk 0:02:10]} 23. a3 {[%clk 0:01:59]}  Ba6 {[%clk 0:02:07]} 24. b4 {[%clk 0:01:58]}  axb4 {[%clk 0:02:07]} 25. axb4 {[%clk 0:01:59]}  Bxb5 {[%clk 0:02:05]} 26. bxc5 {[%clk 0:01:39]}  Bxc4 {[%clk 0:02:05]} 27. Rb4 {[%clk 0:01:40]}  b5 {[%clk 0:02:01]} 28. Nxb5 {[%clk 0:01:38]}  Bxb5 {[%clk 0:02:02]} 29. Rxb5 {[%clk 0:01:39]}  Ra4 {[%clk 0:01:56]} 30. Qc2 {[%clk 0:01:38]}  Qa8 {[%clk 0:01:56]} 31. c6 {[%clk 0:01:30]}  Ra2 {[%clk 0:01:55]} 32. Qc4 {[%clk 0:01:17]}  Qa6 {[%clk 0:01:47]} 33. Rc1 {[%clk 0:01:11]}  Ra8 {[%clk 0:01:41]} 34. Rb7 {[%clk 0:01:08]}  Qxc4 {[%clk 0:01:15]} 35. Rxc4 {[%clk 0:01:09]}  Re2 {[%clk 0:01:14]} 36. Ba7 {[%clk 0:01:08]}  Ne8 {[%clk 0:01:08]} 37. Bf3 {[%clk 0:01:03]}  Ra2 {[%clk 0:01:08]} 38. Bf2 {[%clk 0:00:59]}  Rd2 {[%clk 0:00:56]} 39. Rc1 {[%clk 0:00:50]}  Ra3 {[%clk 0:00:54]} 40. Rf1 {[%clk 0:00:50]}  Rxf3 {[%clk 0:00:53]} 41. Be1 {[%clk 0:00:34]}  Rxf1+ {[%clk 0:00:47]} 42. Kxf1 {[%clk 0:00:34]}  Rc2 {[%clk 0:00:47]} 43. Ba5 {[%clk 0:00:34]}  Rc5 {[%clk 0:00:43]} 44. Bxc7 {[%clk 0:00:33]}  Nxc7 {[%clk 0:00:39]} 45. Rxc7 {[%clk 0:00:34]}  Kg8 {[%clk 0:00:31]} 46. Rd7 {[%clk 0:00:35]}  Bf8 {[%clk 0:00:31]} 47. f6 {[%clk 0:00:34]}  h5 {[%clk 0:00:17]} 48. Rd8 {[%clk 0:00:34]}  Rc4 {[%clk 0:00:16]} 49. Kf2 {[%clk 0:00:34]}  g4 {[%clk 0:00:08]} 50. hxg4 {[%clk 0:00:31]}  hxg4 {[%clk 0:00:09]} 51. Ke3 {[%clk 0:00:32]}  Rc5 {[%clk 0:00:09]} 52. Kd3 {[%clk 0:00:33]}  Rc1 {[%clk 0:00:09]} 53. Rc8 {[%clk 0:00:31]}  Rc5 {[%clk 0:00:09]} 54. Rb8 {[%clk 0:00:29]}  Rc1 {[%clk 0:00:08]} 55. Rb4 {[%clk 0:00:25]}  Bh6 {[%clk 0:00:01]} 56. Rc4 {[%clk 0:00:22]}  Rd1+ {[%clk 0:00:02]} 57. Ke2 {[%clk 0:00:20]}  Rd2+ {[%clk 0:00:02]} 58. Ke1 {[%clk 0:00:21]}  Rd4 {[%clk 0:00:01]} 59. Rxd4 {[%clk 0:00:21]}  exd4 {[%clk 0:00:01]} 60. c7 {[%clk 0:00:21]} 1-0


[Site "https://www.chess.com"]

[Event "Titled Tuesday Blitz December 13 Early 2022"]
[White "Szpar, Milosz"]
[Black "Remizov, Yaroslav"]
[WhiteFideId "1184989"]
[BlackFideId "34134015"]
[WhiteElo "2455"]
[BlackElo "2415"]
[Result "0-1"]
[Round "07"]
[TimeControl "180+1"]
[Date "2022.12.13"]
[WhiteClock "0:00:02"]
[BlackClock "0:00:17"]

1. e4 {[%clk 0:03:00]}  c6 {[%clk 0:03:00]} 2. d4 {[%clk 0:03:00]}  d5 {[%clk 0:03:00]} 3. e5 {[%clk 0:03:00]}  c5 {[%clk 0:03:00]} 4. dxc5 {[%clk 0:03:01]}  e6 {[%clk 0:03:01]} 5. a3 {[%clk 0:03:00]}  Bxc5 {[%clk 0:03:01]} 6. Nf3 {[%clk 0:03:01]}  Ne7 {[%clk 0:03:00]} 7. Bd3 {[%clk 0:03:01]}  Ng6 {[%clk 0:03:00]} 8. O-O {[%clk 0:02:41]}  O-O {[%clk 0:02:53]} 9. b4 {[%clk 0:02:38]}  Bb6 {[%clk 0:02:49]} 10. Re1 {[%clk 0:02:34]}  Nc6 {[%clk 0:02:42]} 11. Bb2 {[%clk 0:02:34]}  Nf4 {[%clk 0:02:36]} 12. Bf1 {[%clk 0:02:32]}  Bd7 {[%clk 0:02:34]} 13. g3 {[%clk 0:02:26]}  Ng6 {[%clk 0:02:32]} 14. c4 {[%clk 0:02:20]}  dxc4 {[%clk 0:02:29]} 15. Nbd2 {[%clk 0:02:19]}  c3 {[%clk 0:02:14]} 16. Bxc3 {[%clk 0:02:19]}  Nce7 {[%clk 0:02:13]} 17. Nc4 {[%clk 0:02:11]}  Nd5 {[%clk 0:02:12]} 18. Bb2 {[%clk 0:02:10]}  Bc6 {[%clk 0:02:07]} 19. Bg2 {[%clk 0:01:54]}  a5 {[%clk 0:01:58]} 20. h4 {[%clk 0:01:49]}  axb4 {[%clk 0:01:56]} 21. h5 {[%clk 0:01:49]}  Nge7 {[%clk 0:01:55]} 22. h6 {[%clk 0:01:48]}  g6 {[%clk 0:01:35]} 23. axb4 {[%clk 0:01:36]}  Rxa1 {[%clk 0:01:33]} 24. Bxa1 {[%clk 0:01:37]}  Nxb4 {[%clk 0:01:30]} 25. Nd6 {[%clk 0:01:38]}  Nf5 {[%clk 0:01:23]} 26. Qd2 {[%clk 0:01:12]}  Nd5 {[%clk 0:01:22]} 27. Nxf5 {[%clk 0:01:06]}  gxf5 {[%clk 0:01:13]} 28. Rc1 {[%clk 0:00:57]}  Kh8 {[%clk 0:01:09]} 29. Nd4 {[%clk 0:00:47]}  Bxd4 {[%clk 0:01:06]} 30. Bxd4 {[%clk 0:00:47]}  f4 {[%clk 0:01:03]} 31. Bc5 {[%clk 0:00:34]}  Rg8 {[%clk 0:01:03]} 32. Bd6 {[%clk 0:00:14]}  Qg5 {[%clk 0:01:00]} 33. Rc4 {[%clk 0:00:10]}  Qxh6 {[%clk 0:00:58]} 34. Rd4 {[%clk 0:00:07]}  Qg7 {[%clk 0:00:50]} 35. Rxd5 {[%clk 0:00:05]}  fxg3 {[%clk 0:00:46]} 36. Be7 {[%clk 0:00:05]}  gxf2+ {[%clk 0:00:46]} 37. Qxf2 {[%clk 0:00:05]}  Qxg2+ {[%clk 0:00:45]} 38. Qxg2 {[%clk 0:00:04]}  Rxg2+ {[%clk 0:00:45]} 39. Kxg2 {[%clk 0:00:04]}  Kg7 {[%clk 0:00:33]} 40. Kg3 {[%clk 0:00:02]}  exd5 {[%clk 0:00:22]} 41. Kf4 {[%clk 0:00:01]}  Kg6 {[%clk 0:00:22]} 42. Bf6 {[%clk 0:00:01]}  d4 {[%clk 0:00:20]} 43. Bh8 {[%clk 0:00:01]}  d3 {[%clk 0:00:18]} 44. Ke3 {[%clk 0:00:01]}  Be4 {[%clk 0:00:17]} 45. Bf6 {[%clk 0:00:02]}  Bf5 {[%clk 0:00:17]} 46. Be7 {[%clk 0:00:02]}  Kh5 {[%clk 0:00:17]} 47. Bb4 {[%clk 0:00:03]}  Kg4 {[%clk 0:00:17]} 48. Be7 {[%clk 0:00:03]}  h5 {[%clk 0:00:17]} 49. Bd8 {[%clk 0:00:03]}  h4 {[%clk 0:00:17]} 50. Kd2 {[%clk 0:00:02]}  h3 {[%clk 0:00:17]} 51. Be7 {[%clk 0:00:02]}  h2 {[%clk 0:00:17]} 0-1


[Site "https://www.chess.com"]

[Event "Titled Tuesday Blitz December 13 Early 2022"]
[White "Tarnowska, Aleksandra"]
[Black "Vargas, Mauricio"]
[WhiteFideId "1180967"]
[BlackFideId "4404572"]
[WhiteElo "1776"]
[BlackElo "2025"]
[Result "1-0"]
[Round "07"]
[TimeControl "180+1"]
[Date "2022.12.14"]
[WhiteClock "0:00:04"]
[BlackClock "0:00:01"]

1. e4 {[%clk 0:02:57]}  c5 {[%clk 0:02:58]} 2. Nf3 {[%clk 0:02:56]}  d6 {[%clk 0:02:57]} 3. Bb5+ {[%clk 0:02:56]}  Nd7 {[%clk 0:02:52]} 4. O-O {[%clk 0:02:56]}  a6 {[%clk 0:02:52]} 5. Be2 {[%clk 0:02:52]}  b5 {[%clk 0:02:52]} 6. d4 {[%clk 0:02:50]}  c4 {[%clk 0:02:51]} 7. c3 {[%clk 0:02:50]}  Bb7 {[%clk 0:02:51]} 8. Nbd2 {[%clk 0:02:48]}  Ngf6 {[%clk 0:02:50]} 9. e5 {[%clk 0:02:48]}  dxe5 {[%clk 0:02:38]} 10. dxe5 {[%clk 0:02:32]}  Ng4 {[%clk 0:02:35]} 11. e6 {[%clk 0:02:32]}  fxe6 {[%clk 0:02:32]} 12. Ng5 {[%clk 0:02:31]}  Ngf6 {[%clk 0:02:08]} 13. Nxe6 {[%clk 0:02:25]}  Qb6 {[%clk 0:02:06]} 14. Nd4 {[%clk 0:02:15]}  e5 {[%clk 0:02:04]} 15. Nf5 {[%clk 0:02:08]}  g6 {[%clk 0:01:54]} 16. Ne3 {[%clk 0:02:06]}  Bd6 {[%clk 0:01:43]} 17. Nf3 {[%clk 0:02:01]}  O-O {[%clk 0:01:42]} 18. Ng5 {[%clk 0:01:21]}  Nc5 {[%clk 0:01:30]} 19. Ng4 {[%clk 0:01:19]}  Rad8 {[%clk 0:01:23]} 20. Be3 {[%clk 0:01:14]}  Bb8 {[%clk 0:01:18]} 21. Bxc5 {[%clk 0:00:43]}  Qxc5 {[%clk 0:01:14]} 22. Nxf6+ {[%clk 0:00:43]}  Kh8 {[%clk 0:00:59]} 23. Nfe4 {[%clk 0:00:27]}  Qc6 {[%clk 0:00:44]} 24. Qc2 {[%clk 0:00:27]}  h6 {[%clk 0:00:33]} 25. Bf3 {[%clk 0:00:17]}  Qb6 {[%clk 0:00:11]} 26. Nh3 {[%clk 0:00:14]}  g5 {[%clk 0:00:09]} 27. Rad1 {[%clk 0:00:11]}  Bxe4 {[%clk 0:00:03]} 28. Bxe4 {[%clk 0:00:11]}  Qc7 {[%clk 0:00:02]} 29. Rxd8 {[%clk 0:00:10]}  Rxd8 {[%clk 0:00:03]} 30. f3 {[%clk 0:00:09]}  Rf8 {[%clk 0:00:02]} 31. Nf2 {[%clk 0:00:09]}  Qb6 {[%clk 0:00:02]} 32. Rd1 {[%clk 0:00:06]}  Ba7 {[%clk 0:00:02]} 33. Qe2 {[%clk 0:00:05]}  Rc8 {[%clk 0:00:02]} 34. Rd2 {[%clk 0:00:05]}  Rd8 {[%clk 0:00:01]} 35. Kf1 {[%clk 0:00:04]} 1-0


[Site "https://www.chess.com"]

[Event "Titled Tuesday Blitz December 13 Early 2022"]
[White "Tharushi, T H D Niklesha"]
[Black "Mesa Cruz, Juan Carlos"]
[WhiteFideId "9918264"]
[BlackFideId "6423400"]
[WhiteElo "1596"]
[BlackElo "2059"]
[Result "0-1"]
[Round "07"]
[TimeControl "180+1"]
[Date "2022.12.14"]
[WhiteClock "0:00:16"]
[BlackClock "0:00:14"]

1. e4 {[%clk 0:03:00]}  c5 {[%clk 0:02:59]} 2. Nf3 {[%clk 0:03:00]}  d6 {[%clk 0:02:59]} 3. d4 {[%clk 0:03:00]}  cxd4 {[%clk 0:03:00]} 4. Nxd4 {[%clk 0:03:00]}  Nf6 {[%clk 0:03:01]} 5. Nc3 {[%clk 0:03:00]}  a6 {[%clk 0:03:01]} 6. Bg5 {[%clk 0:02:59]}  e6 {[%clk 0:03:01]} 7. f4 {[%clk 0:02:59]}  Be7 {[%clk 0:03:01]} 8. Qf3 {[%clk 0:02:59]}  h6 {[%clk 0:02:58]} 9. Qh3 {[%clk 0:02:42]}  e5 {[%clk 0:02:23]} 10. Nf5 {[%clk 0:02:40]}  g6 {[%clk 0:02:21]} 11. Ng7+ {[%clk 0:02:28]}  Kf8 {[%clk 0:02:20]} 12. Nf5 {[%clk 0:01:53]}  gxf5 {[%clk 0:02:07]} 13. exf5 {[%clk 0:01:50]}  Kg7 {[%clk 0:01:48]} 14. Bh4 {[%clk 0:01:46]}  exf4 {[%clk 0:01:43]} 15. O-O-O {[%clk 0:01:42]}  Nc6 {[%clk 0:01:32]} 16. g3 {[%clk 0:01:25]}  Qa5 {[%clk 0:01:22]} 17. gxf4 {[%clk 0:01:24]}  Bxf5 {[%clk 0:01:20]} 18. Rg1+ {[%clk 0:01:23]}  Kf8 {[%clk 0:01:19]} 19. Qg3 {[%clk 0:01:15]}  Rg8 {[%clk 0:01:18]} 20. Qe3 {[%clk 0:01:00]}  Rxg1 {[%clk 0:01:14]} 21. Qxg1 {[%clk 0:01:01]}  Nb4 {[%clk 0:01:15]} 22. a3 {[%clk 0:00:51]}  Nxc2 {[%clk 0:01:04]} 23. Bd3 {[%clk 0:00:50]}  Nxa3 {[%clk 0:00:51]} 24. Bxf5 {[%clk 0:00:48]}  Qxf5 {[%clk 0:00:52]} 25. bxa3 {[%clk 0:00:47]}  Qxf4+ {[%clk 0:00:52]} 26. Kb2 {[%clk 0:00:44]}  Qxh4 {[%clk 0:00:52]} 27. Rd4 {[%clk 0:00:42]}  Qg5 {[%clk 0:00:48]} 28. Qe1 {[%clk 0:00:41]}  d5 {[%clk 0:00:42]} 29. h4 {[%clk 0:00:37]}  Qf5 {[%clk 0:00:35]} 30. Qd2 {[%clk 0:00:25]}  Rc8 {[%clk 0:00:33]} 31. Qxh6+ {[%clk 0:00:24]}  Ke8 {[%clk 0:00:27]} 32. Qd2 {[%clk 0:00:19]}  Rxc3 {[%clk 0:00:17]} 33. Qxc3 {[%clk 0:00:18]}  Ne4 {[%clk 0:00:17]} 34. Qc2 {[%clk 0:00:14]}  Bf6 {[%clk 0:00:16]} 35. Ka2 {[%clk 0:00:15]}  Bxd4 {[%clk 0:00:15]} 36. Qb3 {[%clk 0:00:14]}  Qf2+ {[%clk 0:00:15]} 37. Kb1 {[%clk 0:00:14]}  Nd2+ {[%clk 0:00:13]} 38. Ka2 {[%clk 0:00:14]}  Nxb3+ {[%clk 0:00:14]} 39. Kxb3 {[%clk 0:00:15]}  Qb2+ {[%clk 0:00:14]} 40. Ka4 {[%clk 0:00:16]}  Qb5# {[%clk 0:00:14]} 0-1


[Site "https://www.chess.com"]

[Event "Titled Tuesday Blitz December 13 Early 2022"]
[White "Thorhallsson, Simon"]
[Black "Yedidia, Daniel"]
[WhiteFideId "2310090"]
[BlackFideId "30905907"]
[WhiteElo "2108"]
[BlackElo "2552"]
[Result "0-1"]
[Round "07"]
[TimeControl "180+1"]
[Date "2022.12.14"]
[WhiteClock "0:00:27"]
[BlackClock "0:00:18"]

1. Nf3 {[%clk 0:03:00]}  Nf6 {[%clk 0:02:59]} 2. c4 {[%clk 0:03:01]}  Nc6 {[%clk 0:02:59]} 3. d4 {[%clk 0:03:00]}  d5 {[%clk 0:02:55]} 4. cxd5 {[%clk 0:02:55]}  Nxd5 {[%clk 0:02:54]} 5. e4 {[%clk 0:02:49]}  Nf6 {[%clk 0:02:54]} 6. e5 {[%clk 0:02:44]}  Nd5 {[%clk 0:02:54]} 7. h3 {[%clk 0:02:44]}  Bf5 {[%clk 0:02:48]} 8. a3 {[%clk 0:02:41]}  a6 {[%clk 0:02:47]} 9. Nc3 {[%clk 0:02:41]}  e6 {[%clk 0:02:47]} 10. Bd3 {[%clk 0:02:38]}  Bg6 {[%clk 0:02:41]} 11. O-O {[%clk 0:02:37]}  Be7 {[%clk 0:02:42]} 12. Re1 {[%clk 0:02:36]}  O-O {[%clk 0:02:41]} 13. Bxg6 {[%clk 0:02:35]}  hxg6 {[%clk 0:02:40]} 14. Ne4 {[%clk 0:02:33]}  f6 {[%clk 0:02:10]} 15. exf6 {[%clk 0:02:29]}  gxf6 {[%clk 0:02:07]} 16. Qd3 {[%clk 0:02:26]}  Kg7 {[%clk 0:02:03]} 17. Nc3 {[%clk 0:02:15]}  Nxc3 {[%clk 0:01:59]} 18. bxc3 {[%clk 0:02:15]}  Qd7 {[%clk 0:01:34]} 19. Qe3 {[%clk 0:02:14]}  Nd8 {[%clk 0:01:25]} 20. Qh6+ {[%clk 0:02:13]}  Kf7 {[%clk 0:01:22]} 21. Qh7+ {[%clk 0:02:13]}  Ke8 {[%clk 0:01:21]} 22. Qxg6+ {[%clk 0:02:13]}  Nf7 {[%clk 0:01:22]} 23. Bf4 {[%clk 0:01:52]}  Kd8 {[%clk 0:00:57]} 24. Qg4 {[%clk 0:01:35]}  e5 {[%clk 0:00:46]} 25. Qxd7+ {[%clk 0:01:33]}  Kxd7 {[%clk 0:00:47]} 26. dxe5 {[%clk 0:01:34]}  fxe5 {[%clk 0:00:46]} 27. Rad1+ {[%clk 0:01:31]}  Kc6 {[%clk 0:00:45]} 28. Nxe5+ {[%clk 0:01:26]}  Nxe5 {[%clk 0:00:44]} 29. Bxe5 {[%clk 0:01:27]}  Bxa3 {[%clk 0:00:45]} 30. h4 {[%clk 0:01:24]}  Bc5 {[%clk 0:00:44]} 31. Re2 {[%clk 0:01:19]}  Rae8 {[%clk 0:00:42]} 32. Rde1 {[%clk 0:01:11]}  a5 {[%clk 0:00:28]} 33. h5 {[%clk 0:01:01]}  a4 {[%clk 0:00:24]} 34. h6 {[%clk 0:01:01]}  Rxe5 {[%clk 0:00:24]} 35. Rxe5 {[%clk 0:01:00]}  Bxf2+ {[%clk 0:00:25]} 36. Kh2 {[%clk 0:00:57]}  Bxe1 {[%clk 0:00:25]} 37. Rxe1 {[%clk 0:00:56]}  Rf6 {[%clk 0:00:25]} 38. g4 {[%clk 0:00:50]}  Rxh6+ {[%clk 0:00:24]} 39. Kg3 {[%clk 0:00:51]}  Kc5 {[%clk 0:00:23]} 40. g5 {[%clk 0:00:50]}  Rh8 {[%clk 0:00:22]} 41. Re5+ {[%clk 0:00:47]}  Kc4 {[%clk 0:00:21]} 42. Re4+ {[%clk 0:00:47]}  Kb3 {[%clk 0:00:21]} 43. Rb4+ {[%clk 0:00:46]}  Kxc3 {[%clk 0:00:20]} 44. Rxa4 {[%clk 0:00:47]}  b5 {[%clk 0:00:20]} 45. Ra6 {[%clk 0:00:46]}  c5 {[%clk 0:00:20]} 46. g6 {[%clk 0:00:33]}  b4 {[%clk 0:00:18]} 47. g7 {[%clk 0:00:32]}  Rg8 {[%clk 0:00:18]} 48. Ra7 {[%clk 0:00:32]}  b3 {[%clk 0:00:19]} 49. Kf2 {[%clk 0:00:31]}  b2 {[%clk 0:00:19]} 50. Rb7 {[%clk 0:00:29]}  Rxg7 {[%clk 0:00:19]} 51. Rb5 {[%clk 0:00:27]}  c4 {[%clk 0:00:18]} 0-1


[Site "https://www.chess.com"]